bitfinex/quotes_SOLUSD_20251119
["timestamp","ask_amount","ask_price","bid_price","bid_amount"]
[1763561617312,0.92,137.24,137.21,10.29811017]
[1763561617748,0.72,137.23,137.2,28.41907017]
[1763561617901,0.2,137.24,137.22,10.29811017]
[1763561618102,0.92,137.24,137.2,18.79096]
[1763561618404,0.92,137.24,137.21,10.29811017]
[1763561619326,0.92,137.24,137.2,18.12096]
[1763561619640,0.92,137.24,137.21,10.29811017]
[1763561619838,0.2,137.24,137.21,10.29811017]
[1763561620017,0.2,137.24,137.23,10.29811017]
[1763561620208,0.2,137.24,137.23,0.67]
[1763561620408,0.2,137.24,137.2,18.12096]
[1763561620632,0.92,137.24,137.2,28.41907017]
[1763561620816,0.92,137.24,137.21,10.29811017]
[1763561621422,0.92,137.24,137.2,18.79096]
[1763561621634,0.92,137.24,137.21,10.29811017]
[1763561622540,0.72,137.23,137.21,10.29811017]
[1763561622714,0.2,137.24,137.22,10.96811017]
[1763561622910,0.2,137.24,137.23,10.29811017]
[1763561623333,0.92,137.24,137.21,10.29811017]
[1763561623540,0.2,137.24,137.22,10.29811017]
[1763561623744,0.92,137.24,137.22,10.29811017]
[1763561625519,0.2,137.24,137.21,10.29811017]
[1763561625830,0.72,137.23,137.21,10.29811017]
[1763561626152,0.2,137.24,137.21,10.29811017]
[1763561626334,0.2,137.24,137.23,10.29811017]
[1763561626650,0.2,137.24,137.21,0.67]
[1763561626820,0.2,137.24,137.22,10.29811017]
[1763561627014,0.2,137.24,137.23,10.29811017]
[1763561628146,0.2,137.24,137.21,0.67]
[1763561628450,0.2,137.24,137.22,10.29811017]
[1763561628816,0.2,137.24,137.22,28.41907017]
[1763561629733,0.2,137.24,137.2,2.42]
[1763561629939,0.2,137.24,137.22,10.29811017]
[1763561630826,0.2,137.24,137.22,10.95811017]
[1763561631034,0.2,137.24,137.23,10.29811017]
[1763561631536,0.2,137.24,137.22,10.29811017]
[1763561632236,0.2,137.24,137.22,10.95811017]
[1763561632449,0.2,137.24,137.22,10.29811017]
[1763561632822,0.2,137.24,137.22,10.95811017]
[1763561633439,0.71,137.23,137.17,0.66]
[1763561633828,0.71,137.23,137.19,10.29811017]
[1763561634148,9.78882769,137.22,137.18,10.29811017]
[1763561634323,20.08693786,137.22,137.17,10.29811017]
[1763561634647,0.71,137.21,137.16,0.66]
[1763561634853,0.71,137.21,137.17,10.29811017]
[1763561635755,0.71,137.21,137.17,10.95811017]
[1763561636129,0.71,137.21,137.18,10.29811017]
[1763561636355,9.78882769,137.23,137.2,10.29811017]
[1763561636556,12.25882769,137.23,137.21,10.29811017]
[1763561636926,0.71,137.22,137.2,10.29811017]
[1763561637126,12.25882769,137.23,137.2,10.29811017]
[1763561637363,9.78882769,137.23,137.17,18.12096]
[1763561637542,0.2,137.24,137.21,10.95811017]
[1763561637860,0.2,137.24,137.18,1.76]
[1763561638154,0.91,137.24,137.2,10.29811017]
[1763561638524,0.91,137.24,137.21,10.29811017]
[1763561638728,0.91,137.24,137.21,10.95811017]
[1763561639362,0.2,137.24,137.23,10.29811017]
[1763561639657,0.2,137.24,137.22,0.66]
[1763561639861,0.2,137.24,137.22,10.95811017]
[1763561640226,0.2,137.24,137.23,10.29811017]
[1763561640531,0.2,137.24,137.23,10.95811017]
[1763561640942,0.2,137.24,137.22,6.15047523]
[1763561641444,0.2,137.24,137.22,6.81047523]
[1763561641646,0.71,137.23,137.2,6.15047523]
[1763561642252,0.71,137.23,137.19,6.81047523]
[1763561642459,0.71,137.23,137.19,6.15047523]
[1763561642644,15.93930292,137.22,137.15,0.66]
[1763561642953,7.91047523,137.21,137.15,0.66]
[1763561643159,1.76,137.21,137.18,6.15047523]
[1763561643655,11.54882769,137.22,137.19,6.81047523]
[1763561643826,12.25882769,137.22,137.18,6.15047523]
[1763561644334,12.25882769,137.22,137.18,6.81047523]
[1763561645659,12.25882769,137.22,137.19,6.15047523]
[1763561646028,11.54882769,137.22,137.19,6.15047523]
[1763561646230,0.2,137.24,137.21,6.15047523]
[1763561646466,11.74882769,137.24,137.22,6.15047523]
[1763561646766,11.74882769,137.24,137.21,6.15047523]
[1763561646935,12.45882769,137.24,137.21,6.15047523]
[1763561647461,0.71,137.23,137.19,6.15047523]
[1763561647770,6.15047523,137.21,137.16,6.15047523]
[1763561648061,9.78882769,137.22,137.12,0.66]
[1763561648062,9.78882769,137.17,137.12,0.66]
[1763561648361,1.76,137.16,137.12,0.66]
[1763561648739,1.76,137.16,137.13,6.15047523]
[1763561649127,1.76,137.16,137.13,6.81047523]
[1763561649360,15.93930292,137.14,137.09,6.81047523]
[1763561649532,1.76,137.13,137.09,0.66]
[1763561649743,9.78882769,137.12,137.08,6.15047523]
[1763561649940,15.93930292,137.12,137.07,6.91047523]
[1763561650142,0.71,137.11,137.07,18.88096]
[1763561650467,15.93930292,137.09,137.07,0.1]
[1763561650969,25.41186618,137.16,137.07,0.1]
[1763561650970,18.40930292,137.08,137.07,0.1]
[1763561653507,12.25882769,137.08,137.07,0.1]
[1763561653853,18.40930292,137.08,137.07,0.1]
[1763561654275,12.25882769,137.08,137.07,0.1]
[1763561654452,11.54882769,137.08,137.07,0.1]
[1763561655155,12.25882769,137.08,137.07,0.1]
[1763561655356,9.78882769,137.09,137.07,0.1]
[1763561655574,1.76,137.08,137.07,0.1]
[1763561655752,2.47,137.08,137.07,0.1]
[1763561656073,1.76,137.08,137.07,0.1]
[1763561656474,6.86047523,137.13,137.07,6.91047523]
[1763561656675,1.76,137.12,137.09,6.15047523]
[1763561656852,9.78882769,137.11,137.08,0.66]
[1763561657053,9.78882769,137.11,137.08,6.81047523]
[1763561658298,9.78882769,137.11,137.08,0.66]
[1763561659878,9.78882769,137.11,137.07,18.22096]
[1763561660096,9.78882769,137.11,137.07,18.88096]
[1763561660274,9.78882769,137.11,137.07,25.03143523]
[1763561660902,9.78882769,137.09,137.07,0.1]
[1763561661101,16.64930292,137.09,137.07,0.1]
[1763561661608,15.93930292,137.09,137.07,0.1]
[1763561662172,16.64930292,137.09,137.07,0.1]
[1763561662394,10.49882769,137.09,137.07,0.1]
[1763561662698,9.78882769,137.09,137.07,0.1]
[1763561662897,0.71,137.11,137.07,6.25047523]
[1763561663202,0.71,137.11,137.07,0.1]
[1763561663203,9.78882769,137.1,137.07,0.1]
[1763561663591,18.12096,137.15,137.08,0.66]
[1763561663908,18.12096,137.15,137.07,0.1]
[1763561663909,9.78882769,137.1,137.07,6.25047523]
[1763561664703,9.78882769,137.1,137.07,6.92047523]
[1763561664911,0.65,137.09,137.07,0.1]
[1763561665201,1.76,137.08,137.07,0.1]
[1763561668373,9.78882769,137.09,137.07,0.1]
[1763561668578,1.76,137.08,137.07,0.1]
[1763561668806,9.78882769,137.13,137.08,0.67]
[1763561669111,9.78882769,137.11,137.09,6.15047523]
[1763561669308,9.78882769,137.11,137.09,6.82047523]
[1763561669477,1.76,137.11,137.09,6.82047523]
[1763561669675,1.76,137.11,137.09,0.67]
[1763561669890,1.76,137.11,137.08,18.12096]
[1763561670093,16.58930292,137.1,137.07,0.1]
[1763561670310,6.80047523,137.09,137.07,0.1]
[1763561670498,1.76,137.08,137.07,0.1]
[1763561670707,18.34930292,137.08,137.07,0.1]
[1763561671184,1.76,137.08,137.07,0.1]
[1763561672010,2.41,137.08,137.07,0.1]
[1763561672196,1.76,137.08,137.07,0.1]
[1763561672615,1.76,137.08,137.07,6.92047523]
[1763561673433,1.76,137.08,137.07,0.1]
[1763561673434,11.54882769,137.08,137.07,0.1]
[1763561673596,12.19882769,137.08,137.07,0.1]
[1763561674825,18.34930292,137.08,137.07,0.1]
[1763561675030,12.19882769,137.08,137.07,0.1]
[1763561675325,18.34930292,137.08,137.07,0.1]
[1763561676061,12.19882769,137.08,137.07,0.1]
[1763561676399,18.34930292,137.08,137.07,0.1]
[1763561676800,12.19882769,137.08,137.07,0.1]
[1763561678122,11.54882769,137.08,137.07,0.1]
[1763561678324,9.78882769,137.08,137.07,0.1]
[1763561678510,1.76,137.09,137.07,0.77]
[1763561678705,1.76,137.09,137.08,6.15047523]
[1763561679110,1.76,137.09,137.08,6.82047523]
[1763561679525,6.15047523,137.13,137.08,6.82047523]
[1763561679724,9.78882769,137.11,137.08,6.82047523]
[1763561680196,7.28960454,137.19,137.07,0.1]
[1763561680197,0.65,137.15,137.1,6.15047523]
[1763561680414,0.65,137.15,137.11,6.82047523]
[1763561680415,6.80047523,137.15,137.11,6.82047523]
[1763561680620,11.54882769,137.14,137.11,6.82047523]
[1763561680827,12.19882769,137.14,137.1,6.15047523]
[1763561681214,18.34930292,137.14,137.1,6.82047523]
[1763561681628,0.65,137.13,137.09,24.27143523]
[1763561681804,18.34930292,137.14,137.1,0.67]
[1763561682126,12.19882769,137.14,137.1,6.82047523]
[1763561682426,18.34930292,137.14,137.1,6.82047523]
[1763561682811,18.34930292,137.14,137.07,0.1]
[1763561682812,0.65,137.18,137.13,6.15047523]
[1763561683002,11.54882769,137.17,137.14,6.82047523]
[1763561683212,11.54882769,137.17,137.13,6.15047523]
[1763561683630,11.54882769,137.17,137.13,6.82047523]
[1763561683631,12.19882769,137.17,137.13,6.82047523]
[1763561685532,0.65,137.16,137.12,18.12096]
[1763561685731,0.65,137.16,137.13,6.15047523]
[1763561686309,11.54882769,137.17,137.13,6.82047523]
[1763561686509,0.65,137.16,137.12,6.15047523]
[1763561686812,6.80047523,137.16,137.11,6.82047523]
[1763561687023,9.78882769,137.15,137.11,6.82047523]
[1763561687226,1.76,137.14,137.1,18.12096]
[1763561687424,1.76,137.14,137.11,6.82047523]
[1763561687805,1.76,137.13,137.11,6.82047523]
[1763561688233,1.76,137.13,137.11,6.15047523]
[1763561688425,1.76,137.13,137.11,6.82047523]
[1763561690037,2.43,137.13,137.1,24.27143523]
[1763561690333,1.76,137.13,137.1,24.99143523]
[1763561690910,1.76,137.12,137.1,18.84096]
[1763561691207,1.76,137.12,137.1,24.27143523]
[1763561691419,1.76,137.12,137.1,18.12096]
[1763561691618,1.76,137.12,137.1,18.84096]
[1763561691941,1.76,137.12,137.1,18.12096]
[1763561692513,1.76,137.12,137.1,18.84096]
[1763561692717,1.76,137.12,137.1,6.87047523]
[1763561693111,2.43,137.12,137.09,18.12096]
[1763561693332,1.76,137.12,137.1,6.15047523]
[1763561694027,1.76,137.12,137.1,6.87047523]
[1763561694939,1.76,137.12,137.1,6.15047523]
[1763561695238,1.76,137.12,137.1,6.87047523]
[1763561696330,9.78882769,137.18,137.11,6.87047523]
[1763561696525,9.78882769,137.16,137.13,6.15047523]
[1763561696726,9.78882769,137.16,137.14,6.15047523]
[1763561696943,1.76,137.17,137.14,6.15047523]
[1763561696944,1.76,137.17,137.14,6.87047523]
[1763561697136,1.76,137.17,137.15,6.87047523]
[1763561697445,9.78882769,137.18,137.15,6.15047523]
[1763561697648,12.21882769,137.18,137.15,0.72]
[1763561697827,10.45882769,137.17,137.13,6.87047523]
[1763561698924,0.67,137.16,137.12,6.15047523]
[1763561699129,1.76,137.15,137.12,6.87047523]
[1763561700049,1.76,137.15,137.12,24.27143523]
[1763561700357,9.78882769,137.17,137.14,6.15047523]
[1763561700529,1.76,137.2,137.16,6.15047523]
[1763561700726,1.76,137.2,137.16,0.72]
[1763561700727,1.76,137.19,137.16,0.72]
[1763561700928,1.76,137.19,137.11,27.28678958]
[1763561700929,20.08077987,137.17,137.11,18.12096]
[1763561701122,20.08077987,137.15,137.07,7.39535569]
[1763561701439,9.78882769,137.13,137.09,11.01195218]
[1763561701629,11.54882769,137.13,137.09,0.72]
[1763561701824,12.21882769,137.13,137.09,11.01195218]
[1763561702038,11.54882769,137.13,137.1,18.12096]
[1763561702347,12.21882769,137.13,137.1,18.84096]
[1763561702556,0.67,137.12,137.07,0.82]
[1763561702730,10.29195218,137.09,137.07,0.1]
[1763561702924,12.05195218,137.1,137.07,0.1]
[1763561703130,20.08077987,137.09,137.07,0.1]
[1763561703349,20.08077987,137.08,137.07,0.1]
[1763561703559,10.45882769,137.08,137.07,0.1]
[1763561703849,0.67,137.11,137.07,11.11195218]
[1763561704065,9.78882769,137.13,137.09,10.29195218]
[1763561704349,1.76,137.11,137.08,10.29195218]
[1763561704743,1.76,137.11,137.07,0.1]
[1763561704744,20.75077987,137.1,137.07,0.1]
[1763561704944,10.45882769,137.1,137.07,0.1]
[1763561705153,20.75077987,137.1,137.07,0.1]
[1763561705327,10.96195218,137.09,137.07,0.1]
[1763561705523,1.76,137.08,137.07,0.1]
[1763561707061,1.76,137.08,137.07,0.82]
[1763561707361,2.43,137.08,137.07,0.1]
[1763561707661,22.51077987,137.08,137.07,0.1]
[1763561707830,9.78882769,137.07,137.0,0.72]
[1763561708032,10.29195218,137.03,137.0,0.72]
[1763561708260,1.76,137.02,137.0,0.72]
[1763561710138,0.67,137.08,137.01,10.29195218]
[1763561710355,12.05195218,137.07,137.03,10.29195218]
[1763561710755,12.05195218,137.07,137.03,0.72]
[1763561711659,1.76,137.07,137.03,11.01195218]
[1763561711863,1.76,137.07,137.03,18.30941485]
[1763561712062,12.05195218,137.07,137.04,0.72]
[1763561712357,10.29195218,137.06,137.01,11.01195218]
[1763561712581,10.29195218,137.04,137.01,18.84096]
[1763561712866,10.29195218,137.04,137.01,18.12096]
[1763561713051,12.05195218,137.04,137.02,0.72]
[1763561713251,1.76,137.04,137.02,0.72]
[1763561713966,0.67,137.06,137.01,18.12096]
[1763561714169,1.76,137.04,137.02,0.72]
[1763561714553,10.29195218,137.05,137.02,0.72]
[1763561714847,1.76,137.04,137.02,0.72]
[1763561715042,18.12096,137.12,137.02,0.72]
[1763561715043,9.78882769,137.09,137.03,10.29195218]
[1763561715354,9.78882769,137.09,137.02,0.72]
[1763561715355,1.76,137.09,137.05,10.29195218]
[1763561715534,12.05195218,137.09,137.05,10.29195218]
[1763561715734,12.05195218,137.09,137.05,0.72]
[1763561715935,12.05195218,137.09,137.03,0.72]
[1763561715936,10.96195218,137.08,137.03,0.72]
[1763561716164,10.29195218,137.07,137.03,0.72]
[1763561716334,10.29195218,137.06,137.03,0.72]
[1763561716535,10.29195218,137.08,137.03,11.01195218]
[1763561717066,10.96195218,137.07,137.02,10.29195218]
[1763561717268,10.29195218,137.05,137.01,11.01195218]
[1763561717464,10.29195218,137.03,137.0,18.12096]
[1763561717766,12.05195218,137.05,137.01,0.72]
[1763561717939,12.72195218,137.05,137.01,0.72]
[1763561718955,12.72195218,137.05,136.98,0.72]
[1763561718956,10.29195218,137.02,136.98,0.72]
[1763561719162,10.29195218,136.99,136.96,0.82]
[1763561719367,10.29195218,136.97,136.96,0.1]
[1763561719571,21.84077987,136.97,136.96,0.1]
[1763561719770,22.50077987,136.97,136.96,0.1]
[1763561719971,20.08077987,136.97,136.96,0.1]
[1763561720279,22.50077987,136.97,136.96,0.1]
[1763561721156,12.05195218,136.97,136.96,0.1]
[1763561721358,1.76,136.97,136.96,0.1]
[1763561721543,10.29195218,136.98,136.96,0.1]
[1763561721745,10.29195218,137.0,136.96,0.81]
[1763561721973,12.05195218,137.0,136.96,11.10195218]
[1763561722144,12.05195218,137.0,136.96,0.81]
[1763561722570,12.05195218,137.0,136.97,0.71]
[1763561722756,10.29195218,136.98,136.96,0.1]
[1763561723683,1.76,136.97,136.96,0.1]
[1763561724378,12.05195218,136.97,136.96,0.1]
[1763561724559,12.72195218,136.97,136.96,0.1]
[1763561724959,1.76,136.97,136.96,0.77]
[1763561725474,1.76,136.97,136.96,0.1]
[1763561725672,1.76,136.97,136.96,0.77]
[1763561726378,1.76,136.97,136.96,0.1]
[1763561726879,12.05195218,136.97,136.96,0.1]
[1763561727260,12.72195218,136.97,136.96,0.1]
[1763561727777,12.05195218,136.97,136.96,0.1]
[1763561728780,12.72195218,136.97,136.96,0.1]
[1763561729350,12.21882769,136.97,136.96,0.1]
[1763561729553,22.51077987,136.97,136.96,0.1]
[1763561729952,1.76,136.97,136.96,0.1]
[1763561730151,20.08077987,136.98,136.96,0.1]
[1763561730369,1.76,136.97,136.96,0.1]
[1763561730954,1.76,136.97,136.96,11.06195218]
[1763561731154,18.12096,137.03,136.96,11.06195218]
[1763561731155,1.76,137.0,136.96,11.06195218]
[1763561731354,1.76,137.0,136.97,10.96195218]
[1763561731867,1.76,137.01,136.99,10.29195218]
[1763561732249,0.67,137.04,137.0,10.29195218]
[1763561732460,1.76,137.03,137.0,10.96195218]
[1763561733183,1.76,137.03,137.0,0.67]
[1763561733393,2.43,137.03,136.99,10.29195218]
[1763561733584,0.67,137.02,136.98,28.41291218]
[1763561733779,1.76,137.03,136.98,36.38308121]
[1763561733981,1.76,137.03,137.0,10.29195218]
[1763561734188,1.76,137.03,137.0,10.96195218]
[1763561734490,1.76,137.03,137.01,0.67]
[1763561734987,1.76,137.03,137.01,10.96195218]
[1763561735382,1.76,137.03,137.0,10.29195218]
[1763561735587,1.76,137.03,137.01,0.67]
[1763561735891,1.76,137.03,137.0,10.96195218]
[1763561736102,1.76,137.03,137.01,0.67]
[1763561736294,1.76,137.03,136.99,10.96195218]
[1763561736477,1.76,137.03,136.99,10.29195218]
[1763561736676,2.43,137.03,136.99,10.96195218]
[1763561736866,12.72195218,137.03,136.99,0.67]
[1763561737067,1.76,137.03,137.0,0.67]
[1763561737279,1.76,137.03,136.99,10.96195218]
[1763561737486,1.76,137.03,137.0,0.67]
[1763561737888,12.72195218,137.03,136.98,29.08291218]
[1763561738191,10.29195218,137.01,136.96,11.06195218]
[1763561738393,0.67,137.02,136.96,0.1]
[1763561738394,10.29195218,136.99,136.96,0.1]
[1763561738897,10.96195218,136.99,136.96,0.1]
[1763561739097,16.3228712,137.24,136.96,0.1]
[1763561739098,0.2,137.21,137.12,10.76445329]
[1763561739395,1e-08,137.24,137.23,29.90978768]
[1763561739570,1e-08,137.24,137.23,1.99999999]
[1763561739770,1e-08,137.24,137.2,9.2884412]
[1763561740094,1e-08,137.24,137.23,30.41291217]
[1763561740291,1.78000001,137.24,137.23,40.20173986]
[1763561740468,1e-08,137.24,137.23,40.20173986]
[1763561740668,1e-08,137.24,137.23,30.41291217]
[1763561741898,1e-08,137.24,137.23,37.69994853]
[1763561742092,1e-08,137.24,137.23,30.41291217]
[1763561742392,1e-08,137.24,137.23,40.20173986]
[1763561742988,1e-08,137.24,137.23,47.48877622]
[1763561743492,10.29195219,137.24,137.19,3.81833242]
[1763561743694,1.78,137.23,137.19,22.06936247]
[1763561743884,1e-08,137.24,137.2,10.29195218]
[1763561744083,1.78,137.23,137.2,10.29195218]
[1763561744283,1.78,137.23,137.19,22.06936247]
[1763561744692,1.78,137.23,137.2,10.96195218]
[1763561744866,1e-08,137.24,137.21,10.96195218]
[1763561745071,1.78000001,137.24,137.21,10.96195218]
[1763561745589,1.78000001,137.24,137.21,0.67]
[1763561745789,12.07195219,137.24,137.22,18.12096]
[1763561745980,10.29195218,137.23,137.22,18.12096]
[1763561746175,1.78,137.23,137.22,18.12096]
[1763561746777,1e-08,137.24,137.22,18.12096]
[1763561747082,1.78,137.23,137.22,18.12096]
[1763561747392,1e-08,137.24,137.22,36.37047606]
[1763561747596,1.78,137.23,137.22,25.40852388]
[1763561747792,1.78,137.23,137.22,35.70047606]
[1763561748098,1e-08,137.24,137.22,36.37047606]
[1763561748294,1e-08,137.24,137.23,10.96195218]
[1763561748794,1e-08,137.24,137.23,0.67]
[1763561748971,1e-08,137.24,137.23,10.96195218]
[1763561750098,1e-08,137.24,137.23,18.24898854]
[1763561750474,1.78000001,137.24,137.23,18.24898854]
[1763561752876,1.78000001,137.24,137.23,10.96195218]
[1763561753194,1.78000001,137.24,137.23,18.24898854]
[1763561753697,1.78000001,137.24,137.23,28.03781623]
[1763561753698,1e-08,137.24,137.23,28.03781623]
[1763561754518,0.2,137.35,137.26,18.12096]
[1763561754519,0.2,137.34,137.26,18.12096]
[1763561754802,0.2,137.34,137.29,28.41291218]
[1763561755003,1.98,137.3,137.29,28.41291218]
[1763561755185,0.2,137.3,137.29,29.07291218]
[1763561755387,0.2,137.3,137.29,10.95195218]
[1763561755785,0.2,137.3,137.29,0.66]
[1763561755983,0.2,137.3,137.29,10.95195218]
[1763561756187,0.2,137.3,137.29,38.86173987]
[1763561756490,0.2,137.3,137.29,28.02463157]
[1763561756894,0.2,137.3,137.29,35.85363939]
[1763561757200,0.2,137.3,137.29,17.73267939]
[1763561757395,0.2,137.3,137.29,28.02463157]
[1763561757994,0.2,137.3,137.29,18.23580388]
[1763561758197,0.2,137.3,137.29,28.02463157]
[1763561758507,1.98,137.3,137.29,28.02463157]
[1763561759107,1e-08,137.3,137.29,28.02463157]
[1763561759323,0.2,137.34,137.29,73.5930768]
[1763561759482,1.98,137.34,137.33,28.41291218]
[1763561759896,1.98,137.34,137.33,29.07291218]
[1763561760284,1.98,137.34,137.33,18.12096]
[1763561760500,0.2,137.34,137.33,10.29195218]
[1763561760811,0.2,137.35,137.33,36.35464231]
[1763561761009,0.2,137.35,137.34,20.74077987]
[1763561761306,1.98,137.35,137.34,20.74077987]
[1763561761510,1.98,137.35,137.34,10.44882769]
[1763561761692,1.98,137.35,137.34,20.74077987]
[1763561762400,0.2,137.35,137.34,20.74077987]
[1763561762610,1.98,137.35,137.34,20.74077987]
[1763561762807,1.98,137.35,137.34,23.86728091]
[1763561763510,0.2,137.35,137.34,23.86728091]
[1763561763685,1.98,137.35,137.34,9.78882769]
[1763561763882,1.98,137.35,137.34,18.78096]
[1763561764182,1.98,137.35,137.34,24.91821328]
[1763561764732,0.2,137.35,137.34,42.7163609]
[1763561765697,0.2,137.35,137.33,18.12096]
[1763561765910,0.2,137.35,137.33,6.13725328]
[1763561766417,0.2,137.35,137.31,26.14959484]
[1763561766418,0.2,137.35,137.31,13.41987121]
[1763561766590,0.2,137.35,137.34,18.12096]
[1763561766787,0.2,137.35,137.32,13.41910942]
[1763561766996,0.2,137.35,137.33,18.12096]
[1763561767188,0.2,137.35,137.34,24.25821328]
[1763561767390,0.2,137.35,137.34,18.12096]
[1763561767618,0.2,137.35,137.34,24.91821328]
[1763561767795,1.98,137.35,137.34,24.91821328]
[1763561767995,1.98,137.35,137.32,25.48775006]
[1763561767996,1.98,137.35,137.32,0.66]
[1763561768316,1.98,137.35,137.34,24.25821328]
[1763561768814,1.98,137.35,137.34,31.53941322]
[1763561769002,1.98,137.35,137.34,25.40215994]
[1763561769311,1.98,137.35,137.34,31.53941322]
[1763561770216,1.98,137.35,137.34,25.40215994]
[1763561770523,1.98,137.35,137.34,31.53941322]
[1763561771521,1.98,137.35,137.34,24.25821328]
[1763561771706,0.2,137.35,137.34,13.41845322]
[1763561771912,1.98,137.35,137.34,25.40215994]
[1763561772307,1.98,137.35,137.34,31.53941322]
[1763561772508,1.98,137.35,137.34,25.40215994]
[1763561773740,1.98,137.35,137.34,18.12096]
[1763561773919,1.98,137.35,137.34,25.40215994]
[1763561774116,0.2,137.35,137.34,18.12096]
[1763561774314,1.98,137.35,137.34,31.53941322]
[1763561774633,0.2,137.35,137.34,31.53941322]
[1763561774932,1.98,137.35,137.34,32.19941322]
[1763561775129,0.2,137.35,137.34,32.19941322]
[1763561775721,1.98,137.35,137.34,32.19941322]
[1763561775908,1.98,137.35,137.34,18.78096]
[1763561776109,1.98,137.35,137.34,24.91821328]
[1763561776422,1.98,137.35,137.34,32.19941322]
[1763561776616,1.98,137.35,137.34,31.53941322]
[1763561777132,1.98,137.35,137.34,25.40215994]
[1763561777510,1.98,137.35,137.34,31.53941322]
[1763561777830,1.98,137.35,137.34,25.40215994]
[1763561778132,1.98,137.35,137.34,31.53941322]
[1763561778531,1.98,137.35,137.34,18.12096]
[1763561779117,2.66,137.35,137.34,18.12096]
[1763561780036,2.66,137.35,137.25,37.15748837]
[1763561780037,8.79725328,137.35,137.27,13.42216622]
[1763561780212,6.13725328,137.31,137.24,0.72]
[1763561780413,6.13725328,137.3,137.25,6.13725328]
[1763561780729,9.78882769,137.32,137.22,13.42482068]
[1763561780933,9.78882769,137.3,137.24,18.12096]
[1763561781158,6.13725328,137.27,137.25,18.12096]
[1763561781312,2.45,137.26,137.25,18.12096]
[1763561781512,1.78,137.26,137.25,18.12096]
[1763561781726,0.67,137.27,137.25,18.12096]
[1763561781910,1.78,137.26,137.25,18.12096]
[1763561782111,2.45,137.26,137.25,18.12096]
[1763561783140,2.45,137.26,137.18,39.59559286]
[1763561783141,8.58725328,137.26,137.18,39.59559286]
[1763561783438,6.13725328,137.23,137.17,0.72]
[1763561783613,6.80725328,137.22,137.18,6.13725328]
[1763561783812,0.67,137.22,137.18,6.13725328]
[1763561784018,0.67,137.22,137.19,6.33725328]
[1763561784645,0.72,137.27,137.22,18.12096]
[1763561784938,0.72,137.27,137.22,24.25821328]
[1763561784939,1.78,137.26,137.22,24.25821328]
[1763561785139,6.85725328,137.27,137.22,24.25821328]
[1763561785348,1.78,137.26,137.24,6.13725328]
[1763561785645,0.72,137.27,137.24,6.13725328]
[1763561785646,1.78,137.25,137.24,6.13725328]
[1763561785858,1.78,137.25,137.23,24.25821328]
[1763561786223,0.72,137.27,137.24,6.13725328]
[1763561786435,1.78,137.26,137.24,6.13725328]
[1763561787038,1.78,137.25,137.24,6.13725328]
[1763561787229,1.78,137.25,137.24,24.25821328]
[1763561787435,1.78,137.25,137.24,18.12096]
[1763561787626,1.78,137.25,137.24,24.25821328]
[1763561788039,1.78,137.25,137.24,24.91821328]
[1763561789228,1.78,137.25,137.24,18.12096]
[1763561789623,2.5,137.25,137.24,18.12096]
[1763561790020,1.78,137.25,137.24,18.12096]
[1763561790936,2.5,137.25,137.22,6.13725328]
[1763561791252,1.78,137.25,137.21,18.12096]
[1763561791455,2.5,137.25,137.21,18.12096]
[1763561791627,0.72,137.24,137.23,18.12096]
[1763561791952,2.5,137.25,137.21,6.13725328]
[1763561792357,1.76,137.24,137.23,18.12096]
[1763561792533,1.76,137.24,137.23,24.25821328]
[1763561793639,1.76,137.24,137.23,18.12096]